[Event "11th Festival Palmanova-A 2022"]
[Site "Strassoldo"]
[Date "2022.12.10"]
[Round "5.7"]
[White "Titze, Leo"]
[Black "Liloni, Francesco Mattia"]
[Result "0-1"]
[ECO "A85"]
[WhiteElo "2252"]
[BlackElo "1909"]
[Annotator "TA"]
[PlyCount "88"]
[EventDate "2022.12.08"]
[EventType "swiss"]
[EventCountry "ITA"]
[SourceTitle "playchess.com"]
[Source "ChessBase"]
[SourceQuality "1"]
[TimeControl "5400+30"]

{[%evp 12,88,2,15,51,-15,35,-5,53,68,51,3,20,0,7,15,10,-12,-15,-9,-19,-37,18,4,77,78,107,111,113,91,112,98,111,81,111,-13,48,54,40,16,61,0,0,0,0,-687,-674,-691,-685,-652,-652,-692,-561,-741,-734,-717,-687,-970,-890,-869,-768,-877,-868,-861,-858,-857,-849,-1179,-1168,-1346,-1319,-1302,-1303,-2431,-2356,-29982,-29983,-29981,-5222]} 1. d4 {[%emt 0:00:16]} f5 {[%emt 0:01:38]} 2. c4 {[%emt 0:06:32]} Nf6 {[%emt 0:00:07]} 3. Nc3 {[%emt 0:00:06]} g6 {[%emt 0:00:12]} 4. Nf3 {[%emt 0:03:37]} Bg7 {[%emt 0:00:05]} 5. Bf4 {[%emt 0:00:13]} d6 {[%emt 0:00:07]} 6. h3 {[%emt 0:00:19]} O-O {[%emt 0:00:15]} 7. e3 {[%emt 0:00:16]} Qe8 {[%emt 0:06:13] A85: Dutch Defence: 2 c4 Nf6 3 Nc3.} 8. Qc2 {[%emt 0:07:36] [#]} (8. Qb3 $14) 8... a6 $146 {[%emt 0:01:43]} (8... Nc6 $11) ({Predecessor:} 8... c6 9. b4 Nbd7 10. a4 e5 11. Bh2 e4 12. Nd2 Qe6 13. b5 Nh5 14. Be2 Nhf6 15. a5 {1-0 (28) Obregon Garcia,R (2167)-Tazetdinova,A (1451) Chess.com INT 2021}) 9. c5 {[%emt 0:13:17]} Nbd7 {[%emt 0:06:42]} (9... Nc6 $11) 10. Bc4+ $14 {[%emt 0:03:07]} Kh8 $1 {[%emt 0:00:48]} 11. Be6 {[%emt 0:04:52] Inhibits e5.} (11. O-O $14) 11... dxc5 $11 {[%emt 0:00:57]} 12. Bxc7 {[%emt 0:05:06]} cxd4 {[%emt 0:00:28]} 13. exd4 {[%emt 0:01:59]} (13. Nxd4 Nc5 14. Bc4 Bd7 $15) 13... Nc5 {[%emt 0:00:32]} 14. Bxc8 {[%emt 0:01:27]} (14. Bd5 $5 {[%cal Rd4c5]}) 14... Rxc8 {[%emt 0:00:10]} 15. Be5 $36 {[%emt 0:01:24][%mdl 2048] White has good play.} Nce4 {[%emt 0:00:25]} 16. O-O {[%emt 0:01:21]} Nxc3 {[%emt 0:01:39]} (16... Nd5 $15) 17. bxc3 {[%emt 0:00:02]} Ne4 {[%emt 0:00:55]} (17... Qc6 $11) 18. c4 {[%emt 0:01:36]} (18. Bxg7+ {simplifies} Kxg7 19. c4 b5 20. c5) 18... b5 {[%emt 0:03:34]} 19. c5 {[%emt 0:00:41]} Qd7 {[%emt 0:00:34]} 20. Rfd1 {[%emt 0:01:15]} (20. Bxg7+ {simplifies} Kxg7 21. Qb2 Rfd8 22. Rfd1) 20... Qd5 {[%emt 0:00:09]} 21. Bxg7+ {[%emt 0:01:08]} Kxg7 {[%emt 0:00:11]} 22. Rac1 {[%emt 0:01:31]} Rfd8 {[%emt 0:03:49]} 23. c6 {[%emt 0:03:19]} ({White should try} 23. Qb2 $16) 23... Rc7 {[%emt 0:01:35]} ({Black should play} 23... b4 $11) 24. Ne5 $14 {[%emt 0:03:15]} b4 {[%emt 0:03:40]} 25. Rd3 {[%emt 0:06:47]} Nc3 {[%emt 0:03:02][%cal Be4c3,Bc3e2,Be2c1,Bc1b3,Bb3c5][%mdl 32]} 26. a3 {[%emt 0:01:07]} ({Better is} 26. Re1 $1 $14) 26... Qe4 $11 {[%emt 0:01:49] aiming for ...Ne2+.} 27. f3 {[%emt 0:05:20]} ({Of course not} 27. axb4 Ne2+ 28. Kh1 Nxd4 $17) 27... Qf4 {[%emt 0:00:37][%cal Of4c1] Threatens to win with ...Qxc1+!} (27... Ne2+ $2 28. Kf2 Qf4 29. Kxe2 $18 (29. Qxe2 Qxc1 30. Rd1 Qg5 $11)) 28. axb4 $2 {[%emt 0:02:19][%mdl 8192] [#] White is now going downhill.} (28. Re1 $11) 28... Qxc1+ $3 $19 {[%emt 0:00:11][%mdl 576] Deflection, Decoy} 29. Qxc1 {[%emt 0:00:01]} Ne2+ {[%emt 0:00:11]} 30. Kf2 {[%emt 0:00:06]} Nxc1 {[%emt 0:00:07]} 31. Rd1 {[%emt 0:00:15]} Nb3 {[%emt 0:00:29]} 32. Ke3 {[%emt 0:00:14]} Rb8 {[%emt 0:00:44]} 33. d5 {[%emt 0:00:42]} Rxb4 {[%emt 0:00:28]} 34. d6 {[%emt 0:00:03]} exd6 {[%emt 0:00:29]} 35. Rxd6 {[%emt 0:00:01]} Nc5 {[%emt 0:02:00]} 36. f4 {[%emt 0:00:19]} a5 {[%emt 0:00:29]} 37. Rd5 {[%emt 0:00:12]} Ne6 {[%emt 0:00:58]} 38. Rxa5 {[%emt 0:00:47]} Re4+ {[%emt 0:00:13]} 39. Kd3 {[%emt 0:00:34]} Nxf4+ {[%emt 0:00:31]} 40. Kc3 {[%emt 0:00:02]} Kf6 {[%emt 0:00:31]} 41. Nd7+ {[%emt 0:00:20]} Ke7 {[%emt 0:00:17]} 42. Nb8 {[%emt 0:00:07]} Kd6 {[%emt 0:00:23] [#] And now ...Rc8 would win.} 43. g3 {[%emt 0:00:13]} Nd5+ {[%emt 0:00:08]} 44. Kd3 {[%emt 0:00:05]} Nb4+ {[%emt 1:02:25] Weighted Error Value: White=0.61/Black=0.32} (44... Rce7 $142 45. Nd7 Nb4+ 46. Kd2 Rd4+ 47. Kc3 Nxc6 48. Rc5 Re3+ 49. Kb2 Rd2+ 50. Rc2 Rxc2+ 51. Kxc2 Kxd7 52. Kd2 Rxg3 53. Ke2 Rxh3 54. Kf2 f4 55. Kg1 Rf3 56. Kg2 Ne5 57. Kg1 Ng4 58. Kg2 Rb3 59. Kf1 f3 60. Ke1 Rd3 61. Kf1 Rd1#) 0-1

[Event "11th Festival Palmanova-A 2022"]
[Site "Strassoldo"]
[Date "2022.12.10"]
[Round "5.8"]
[White "Perossa, Nicolas"]
[Black "Savanovic, Aleksandar"]
[Result "0-1"]
[ECO "B04"]
[WhiteElo "2195"]
[BlackElo "2365"]
[Annotator "TA"]
[PlyCount "73"]
[EventDate "2022.12.08"]
[EventType "swiss"]
[EventCountry "ITA"]
[SourceTitle "playchess.com"]
[Source "ChessBase"]
[SourceQuality "1"]
[TimeControl "5400+30"]

{[%evp 27,73,0,0,0,0,0,0,0,0,0,0,0,8,0,8,0,14,0,0,0,-6,-13,0,0,0,0,0,0,0,-58,-60,-62,-61,-61,-59,-54,-54,-62,-61,-64,-31,-27,-27,-63,-41,-2019,-4241,-1525]} 1. e4 {[%emt 0:00:02][%cal Be2e4,Be4e5][%mdl 32]} Nf6 {[%emt 0:00:09]} 2. e5 {[%emt 0:01:28]} Nd5 {[%emt 0:00:07]} 3. c4 {[%emt 0:00:08]} Nb6 {[%emt 0:00:09]} 4. d4 {[%emt 0:00:09]} d6 {[%emt 0:00:05]} 5. exd6 {[%emt 0:00:05]} cxd6 {[%emt 0:00:07]} 6. Nc3 {[%emt 0:00:05]} g6 {[%emt 0:00:10]} 7. h3 {[%emt 0:00:06]} Bg7 {[%emt 0:00:06]} 8. Nf3 {[%emt 0:00:07]} O-O {[%emt 0:00:09]} 9. Be2 {[%emt 0:00:02]} Nc6 {[%emt 0:04:01]} 10. O-O {[%emt 0:00:53]} Bf5 {[%emt 0:10:09]} 11. Be3 {[%emt 0:08:29]} d5 {[%emt 0:00:26]} 12. c5 {[%emt 0:08:53]} Nc4 {[%emt 0:02:00]} 13. Bc1 {[%emt 0:00:59]} b6 {[%emt 0:11:50]} 14. cxb6 {[%emt 0:08:12]} axb6 {[%emt 0:03:12]} 15. b3 {[%emt 0:06:19] B04: Alekhine's Defence: 4 Nf3.} Na3 {[%emt 0:24:16]} 16. Bxa3 {[%emt 0:03:02]} Rxa3 {[%emt 0:00:05] [#]} 17. Bb5 $146 {[%emt 0:18:58] The position is equal.} ({Predecessor:} 17. Nb5 Ra5 18. Rc1 Qd7 19. a4 Bf6 20. Qd2 Rc8 21. Rc3 h5 22. Rfc1 Raa8 23. Qe3 {½-½ (70) Rios Parra,A (2291)-Garcia,G (2389) El Bagre 2010}) 17... Nb4 {[%emt 0:00:20][%cal Bc6b4,Bb4d3,Bd3f4][%mdl 32]} 18. Ba4 {[%emt 0:00:07]} Bh6 {[%emt 0:00:26] Prevents Qd2. This pair of bishops is nice.} 19. Qe2 {[%emt 0:06:53]} Bd3 {[%emt 0:07:36]} 20. Qb2 {[%emt 0:00:32]} Rxa4 {[%emt 0:00:46]} 21. bxa4 {[%emt 0:02:13]} Bxf1 {[%emt 0:00:29]} 22. Rxf1 {[%emt 0:00:10]} Nd3 $36 {[%emt 0:05:19][%mdl 2048] Black has the initiative.} 23. Qb5 {[%emt 0:01:34][%csl LRd3,LRd5]} Nf4 {[%emt 0:00:05]} 24. Rb1 {[%emt 0:03:14]} (24. g3 {seems wilder.} Qc8 25. Nxd5 Qxh3 26. Ne3) 24... Qa8 {[%emt 0:00:46] Against Qc6} 25. g3 {[%emt 0:03:02]} Qc8 {[%emt 0:07:06]} 26. Nxd5 {[%emt 0:00:50]} Qxh3 {[%emt 0:00:18][%csl Gf4][%cal Rh3g2] [#]} 27. Nxf4 {[%emt 0:01:40]} Bxf4 {[%emt 0:00:07]} 28. Qf1 {[%emt 0:00:41]} ({Much weaker is} 28. Qxb6 Rb8 29. Qxb8+ Bxb8 30. Rxb8+ Kg7 $19) ({White should try} 28. Ne5 $11 Bxg3 29. fxg3 Qxg3+ 30. Kf1) 28... Qxf1+ $1 $15 {[%emt 0:03:34]} 29. Kxf1 {[%emt 0:00:05][%mdl 4096] Endgame KRB-KRN} Bd6 {[%emt 0:00:05]} 30. Rxb6 {[%emt 0:06:19] [#] aiming for a5.} Ra8 {[%emt 0:00:06] Inhibits a5.} 31. Ke2 {[%emt 0:00:08]} Rxa4 {[%emt 0:00:06]} 32. Rb2 {[%emt 0:00:04]} h5 {[%emt 0:01:11]} 33. Kd3 {[%emt 0:01:22]} f6 {[%emt 0:06:07] Black is more active.} 34. Nd2 $1 {[%emt 0:01:21]} g5 {[%emt 0:07:45]} 35. Ne4 {[%emt 0:01:17]} Ba3 {[%emt 0:00:56]} 36. Nc3 $2 {[%emt 0:02:48][%mdl 8192]} (36. Rb3 $15) 36... Rxd4+ $19 {[%emt 0:00:53]} 37. Kxd4 {[%emt 0:16:43] Weighted Error Value: White=0.41/Black=0.03 (flawless)} 0-1

[Event "11th Festival Palmanova-A 2022"]
[Site "Strassoldo"]
[Date "2022.12.10"]
[Round "5.9"]
[White "Iolis, Oleg"]
[Black "Negro, Roberto"]
[Result "0-1"]
[ECO "B06"]
[WhiteElo "2212"]
[BlackElo "2117"]
[Annotator "TA"]
[PlyCount "53"]
[EventDate "2022.12.08"]
[EventType "swiss"]
[EventCountry "ITA"]
[SourceTitle "playchess.com"]
[Source "ChessBase"]
[SourceQuality "1"]
[TimeControl "5400+30"]

{[%evp 9,53,35,40,23,22,19,32,15,44,-24,-16,-22,0,0,-1,-19,0,-28,-14,-16,-8,-10,-10,-20,0,0,0,0,0,0,8,0,0,0,0,0,0,-97,-99,-96,0,0,0,-93,-109,-581]} 1. e4 {[%emt 0:00:08]} d6 {[%emt 0:00:20]} 2. d4 {[%emt 0:00:05]} g6 {[%emt 0:00:16]} 3. Nc3 {[%emt 0:00:08]} Bg7 {[%emt 0:00:25]} 4. Bg5 {[%emt 0:00:13]} a6 {[%emt 0:00:23]} 5. Qd2 {[%emt 0:04:54]} b5 {[%emt 0:04:37][%cal Bb7b5,Bb5b4][%mdl 32]} 6. a4 {[%emt 0:00:15] B06: Modern Defence.} b4 {[%emt 0:03:18]} 7. Nd5 {[%emt 0:00:05]} a5 {[%emt 0:01:34]} 8. c3 {[%emt 0:00:42] White is slightly better.} h6 {[%emt 0:04:45] [#]} 9. Bf4 $146 {[%emt 0:01:01]} ({White should try} 9. Bh4 $14) ({Predecessor:} 9. Bh4 Nf6 10. Nxf6+ exf6 11. Bd3 O-O 12. Ne2 c5 13. O-O Nc6 14. f4 Qb6 15. d5 {0-1 (99) Taichman,O (2293)-Maksimovic,B (2455) Chess.com INT 2022}) 9... e6 {[%emt 0:05:51]} 10. Ne3 {[%emt 0:00:07]} bxc3 {[%emt 0:09:05]} 11. bxc3 {[%emt 0:01:28]} Nf6 {[%emt 0:00:24]} 12. Bd3 {[%emt 0:00:44]} Nh5 {[%emt 0:00:23]} 13. Ne2 {[%emt 0:02:16]} Nxf4 {[%emt 0:03:57]} 14. Nxf4 {[%emt 0:00:04]} O-O {[%emt 0:00:31]} 15. O-O {[%emt 0:00:36]} Nd7 {[%emt 0:01:52]} 16. Ne2 {[%emt 0:01:12]} (16. Nc4 {keeps more tension.} d5 17. exd5 exd5 18. Nxd5 Nc5 19. Nxc7 Qxc7 20. dxc5 Qxc5 21. Qe3) 16... e5 {[%emt 0:02:11]} 17. f4 {[%emt 0:06:56]} exd4 {[%emt 0:07:53]} 18. Nxd4 {[%emt 0:02:19]} Bb7 {[%emt 0:08:08]} 19. f5 {[%emt 0:02:21]} Nc5 {[%emt 0:02:16]} 20. fxg6 {[%emt 0:01:05]} fxg6 {[%emt 0:00:32]} 21. Rxf8+ {[%emt 0:01:15]} Qxf8 {[%emt 0:00:32]} 22. Rf1 {[%emt 0:07:44]} Qe8 {[%emt 0:05:09][%cal Oc5d3]} 23. Nb5 {[%emt 0:16:40]} (23. Nd5 $1 $11) 23... Rc8 $17 {[%emt 0:09:18]} (23... Bxe4 $2 24. Nxc7 Qe5 25. Nc4 $18) (23... Nxe4 24. Qa2+ Kh8 25. Nxc7 $14) 24. Nd5 {[%emt 0:04:15] [#]} Bxd5 {[%emt 0:06:33]} ({Much less strong is} 24... Nxa4 25. Ndxc7 (25. Nbxc7 Qe5 $16) 25... Qc6 26. Ne6 $18) ({Reject} 24... Nxe4 $6 25. Qa2 Kh7 26. Re1 Bxd5 27. Qxd5 $11) (24... Qe5 $1 $17 {White must now prevent ...c6.} 25. Bc2 Nxe4 26. Bxe4 Qxe4 27. Nbxc7 Rf8) 25. exd5 $11 {[%emt 0:00:06]} Nxa4 {[%emt 0:01:06]} 26. Ra1 {[%emt 0:07:33]} (26. Nd4 $11 {keeps the balance.}) 26... Nc5 $17 {[%emt 0:00:19] Strongly threatening ...Nb3.} 27. Bc2 $2 {[%emt 0:00:25][%mdl 8192] Inhibits Nb3.   Weighted Error Value: White=0.26 (precise) /Black=0.11 (very precise)} 0-1

[Event "11th Festival Palmanova-A 2022"]
[Site "Strassoldo"]
[Date "2022.12.10"]
[Round "5.10"]
[White "Bardone, Lorenzo"]
[Black "Piangerelli, Michele"]
[Result "1/2-1/2"]
[ECO "E06"]
[WhiteElo "2215"]
[BlackElo "2017"]
[Annotator "TA"]
[PlyCount "97"]
[EventDate "2022.12.08"]
[EventType "swiss"]
[EventCountry "ITA"]
[SourceTitle "playchess.com"]
[Source "ChessBase"]
[SourceQuality "1"]
[TimeControl "5400+30"]

{[%evp 15,97,34,27,16,40,27,45,38,37,39,41,24,31,24,22,-8,19,0,0,0,0,0,0,12,6,-7,0,0,0,0,0,0,0,0,0,0,0,0,0,0,0,0,0,0,0,0,0,0,0,0,0,0,0,0,0,0,0,0,0,0,85,0,0,0,0,0,0,0,73,0,0,0,59,0,0,0,0,0,0,0,0,0,0,0]} 1. d4 {[%emt 0:00:03]} d5 {[%emt 0:01:28]} 2. c4 {[%emt 0:00:07]} c6 {[%emt 0:00:03]} 3. Nf3 {[%emt 0:00:08]} Nf6 {[%emt 0:00:04]} 4. g3 {[%emt 0:00:06]} e6 {[%emt 0:00:30]} 5. Bg2 {[%emt 0:00:07]} dxc4 {[%emt 0:00:09]} 6. O-O {[%emt 0:01:00]} Nbd7 {[%emt 0:00:08][%cal Bb8d7,Bd7b6,Bb6d5][%mdl 32]} 7. a4 {[%emt 0:09:43]} Be7 {[%emt 0:00:09]} 8. Qc2 {[%emt 0:02:36]} O-O {[%emt 0:03:06]} 9. Qxc4 {[%emt 0:04:38] E06: Closed Catalan: Early deviations.} a5 {[%emt 0:00:43]} 10. Nc3 {[%emt 0:04:10]} Nb6 {[%emt 0:00:31]} 11. Qb3 {[%emt 0:05:55] White is slightly better.} Nbd5 {[%emt 0:00:35]} 12. Rd1 {[%emt 0:04:12]} Qc7 {[%emt 0:07:50] [#]} 13. Bg5 $146 {[%emt 0:06:04]} ({Predecessor:} 13. Ne5 Rd8 14. Nc4 Bb4 15. e4 Bxc3 16. bxc3 b5 17. Ne5 Ne7 18. Ba3 Bb7 19. Nd3 bxa4 {1-0 (55) Palacios,E (2160)-Diaz Moscol,J (1591) Lima 2015}) 13... h6 {[%emt 0:00:36]} 14. Bxf6 {[%emt 0:00:53]} Bxf6 {[%emt 0:01:18]} 15. e4 {[%emt 0:03:27]} Nxc3 {[%emt 0:01:23]} 16. Qxc3 {[%emt 0:00:07]} Rd8 {[%emt 0:01:04]} 17. e5 {[%emt 0:00:53]} Be7 {[%emt 0:00:06]} 18. Nd2 {[%emt 0:01:29]} Bb4 {[%emt 0:03:00]} 19. Qc4 {[%emt 0:00:34]} Bd7 {[%emt 0:07:42]} 20. Nb3 {[%emt 0:06:45]} Rac8 {[%emt 0:00:41]} 21. Nc5 {[%emt 0:02:36]} Be8 {[%emt 0:00:35]} 22. Rac1 {[%emt 0:04:57]} Bxc5 {[%emt 0:01:58]} 23. Qxc5 {[%emt 0:00:28]} b6 {[%emt 0:00:17]} 24. Qc3 {[%emt 0:03:43]} c5 {[%emt 0:00:16]} 25. b3 {[%emt 0:03:31]} Bc6 {[%emt 0:02:58]} 26. Bxc6 {[%emt 0:03:03]} Qxc6 {[%emt 0:00:01]} 27. dxc5 {[%emt 0:01:52]} Rxd1+ {[%emt 0:00:17]} 28. Rxd1 {[%emt 0:00:01]} Qxc5 {[%emt 0:00:33]} 29. Qxc5 {[%emt 0:00:58]} Rxc5 $11 {[%emt 0:01:02][%mdl 4096] Endgame KR-KR} 30. Rd8+ {[%emt 0:00:20]} Kh7 {[%emt 0:00:01][%cal Oc5c3]} 31. Rb8 {[%emt 0:00:17]} Rc6 {[%emt 0:00:01]} 32. g4 {[%emt 0:03:12]} Kg6 {[%emt 0:00:14]} 33. Rb7 {[%emt 0:02:08]} Kg5 {[%emt 0:05:26]} 34. Rxf7 {[%emt 0:12:47]} Kxg4 {[%emt 0:00:05]} 35. Rxg7+ {[%emt 0:00:09]} Kf5 {[%emt 0:00:09]} 36. Rg3 {[%emt 0:00:57]} Kxe5 {[%emt 0:01:09]} 37. Rh3 {[%emt 0:00:06]} Rc1+ {[%emt 0:05:46]} 38. Kg2 {[%emt 0:00:02]} Rb1 {[%emt 0:00:10]} 39. Rh5+ {[%emt 0:01:55]} Kd6 {[%emt 0:00:16]} 40. Rb5 {[%emt 0:00:22]} Kc6 {[%emt 0:00:01]} 41. h4 {[%emt 0:00:47]} Rc1 {[%emt 0:04:46]} (41... e5 $11 {remains equal.}) 42. Re5 {[%emt 0:02:11]} (42. Rh5 $5 {[%cal Rh5h6]}) 42... Kd6 {[%emt 0:00:17]} 43. Rb5 {[%emt 0:01:13]} Kc6 {[%emt 0:00:10] [#] ...Rc5 is the strong threat.} 44. b4 {[%emt 0:03:47] Inhibits Rc5.} (44. Rh5 $14) 44... Rc4 {[%emt 0:01:07] The position is equal.} 45. bxa5 {[%emt 0:00:07]} bxa5 {[%emt 0:00:04]} 46. Rxa5 {[%emt 0:00:21] And now Kg3 would win.} Rxh4 {[%emt 0:00:04]} 47. Kg3 {[%emt 0:01:35]} Rd4 {[%emt 0:03:47]} 48. f4 {[%emt 0:01:13]} h5 {[%emt 0:00:16]} 49. Rxh5 {[%emt 0:01:32] Weighted Error Value: White=0.07 (flawless) /Black=0.06 (flawless)} 1/2-1/2

[Event "11th Festival Palmanova-A 2022"]
[Site "Strassoldo"]
[Date "2022.12.10"]
[Round "5.11"]
[White "Pozzari, Simone"]
[Black "Ranfagni, Stefano"]
[Result "1-0"]
[ECO "A97"]
[WhiteElo "2139"]
[BlackElo "1934"]
[Annotator "TA"]
[PlyCount "53"]
[EventDate "2022.12.08"]
[EventType "swiss"]
[EventCountry "ITA"]
[SourceTitle "playchess.com"]
[Source "ChessBase"]
[SourceQuality "1"]
[TimeControl "5400+30"]

{[%evp 15,53,52,48,54,67,77,88,108,101,104,101,62,188,159,202,206,335,319,310,304,297,304,279,272,331,232,228,72,77,88,71,83,196,167,227,229,1065,1060,915,957]} 1. d4 {[%emt 0:03:49]} e6 {[%emt 0:00:08]} 2. c4 {[%emt 0:00:16]} f5 {[%emt 0:00:07]} 3. Nc3 {[%emt 0:00:35]} Nf6 {[%emt 0:00:05]} 4. Nf3 {[%emt 0:00:13]} d6 {[%emt 0:00:29]} 5. g3 {[%emt 0:00:08]} Be7 {[%emt 0:00:08]} 6. Bg2 {[%emt 0:00:05]} O-O {[%emt 0:00:16]} 7. O-O {[%emt 0:00:06]} Qe8 {[%emt 0:00:23]} 8. Re1 {[%emt 0:01:02]} Nc6 {[%emt 0:02:11]} 9. d5 {[%emt 0:01:18] A97: Classical Dutch: Fluid Systems: 7 Nc3 Qe8.} exd5 {[%emt 0:00:28]} 10. cxd5 {[%emt 0:00:17]} Ne5 {[%emt 0:00:11]} 11. Nd4 {[%emt 0:01:28] [#] White is better.} Bd8 $146 {[%emt 0:02:38]} ({Predecessor:} 11... Kh8 12. Qc2 g6 13. Ncb5 Qf7 14. Nxc7 Rb8 15. Nce6 Rg8 16. Bg5 Bd7 17. Rac1 Rgc8 {0-1 (87) Hnydiuk,A (2394)-Postny,E (2563) Chess.com INT 2022}) 12. f4 {[%emt 0:23:34]} Neg4 {[%emt 0:04:39]} 13. Qd3 {[%emt 0:05:38] Inhibits Ne3.} g6 {[%emt 0:11:34]} (13... Qg6 $14) 14. Bd2 {[%emt 0:02:19]} Bd7 {[%emt 0:01:06]} 15. h3 {[%emt 0:11:34] Prevents c6.} Nh6 {[%emt 0:00:35]} (15... Ne5 {might work better.} 16. fxe5 dxe5) 16. e4 $18 {[%emt 0:01:36]} (16. Ne6 Bxe6 17. dxe6 c6 $11) 16... fxe4 {[%emt 0:03:01]} 17. Nxe4 {[%emt 0:02:10]} Nxe4 {[%emt 0:02:27]} 18. Rxe4 {[%emt 0:00:33]} Qf7 {[%emt 0:00:39]} 19. Ne6 {[%emt 0:02:44] Against c5} Re8 {[%emt 0:05:30]} 20. Bc3 {[%emt 0:02:15] [#] Hoping for Qd4.} Bf6 {[%emt 0:04:53] Prevents Qd4.} 21. Nxc7 $2 {[%emt 0:06:57]} (21. g4 $18 {and White stays clearly on top.}) 21... Rxe4 $16 {[%emt 0:00:54]} 22. Bxe4 {[%emt 0:00:26]} (22. Nxa8 Re7 $11) 22... Rc8 {[%emt 0:01:59]} 23. Ne6 {[%emt 0:00:30] White is more active.} Kh8 {[%emt 0:06:03]} (23... Bxc3 $16 {keeps fighting.} 24. bxc3 Qf6) 24. Rc1 {[%emt 0:02:01]} Bxc3 {[%emt 0:06:11]} (24... Nf5 $142 25. Bxf5 gxf5 26. Bxf6+ (26. Qxf5 $2 Rxc3 27. Rxc3 Bd4+ 28. Nxd4 Bxf5 $19) 26... Qxf6 27. Rxc8+ Bxc8) 25. Rxc3 $18 {[%emt 0:00:20]} ({Don't play} 25. bxc3 $6 Re8 26. Rb1 (26. Qd4+ Kg8 $16) 26... b6) 25... Nf5 $2 {[%emt 0:03:40] [#]} (25... Rxc3 26. Qxc3+ Kg8) 26. Rxc8+ {[%emt 0:00:32]} Bxc8 {[%emt 0:00:22]} 27. Qc3+ {[%emt 0:31:34] Weighted Error Value: White=0.27 (precise) /Black=0.41} 1-0